bitfinex/quotes_SOLUSD_20240808
["timestamp","ask_amount","ask_price","bid_price","bid_amount"]
[1723076860688,23.9057,143.3,143.16,1.39660986]
[1723076860860,6.9807,143.26,143.2,6.9831]
[1723076861180,20.0,143.25,143.12,6.3398]
[1723076861359,21.7665,143.22,143.08,6.5282]
[1723076861688,20.0,143.21,143.14,6.9859]
[1723076861876,20.0,143.21,143.08,6.5282]
[1723076862077,6.9832,143.2,143.15,6.9856]
[1723076862565,20.0,143.21,143.08,6.5282]
[1723076862765,20.0,143.21,143.04,16.073]
[1723076862766,6.9852,143.16,143.04,16.073]
[1723076863084,36.99,143.2,143.04,16.073]
[1723076863085,54.449,143.2,143.04,16.073]
[1723076863292,54.449,143.2,143.1,6.988]
[1723076863293,6.9857,143.15,143.1,6.988]
[1723076863860,20.0,143.19,143.04,36.073]
[1723076864085,6.985,143.17,143.12,6.9871]
[1723076864281,6.9852,143.16,143.11,6.9875]
[1723076864485,6.9858,143.15,143.1,6.988]
[1723076864671,20.0,143.19,143.04,16.073]
[1723076864872,6.9852,143.16,143.11,6.9875]
[1723076865269,36.99,143.17,143.04,16.073]
[1723076865674,20.0,143.16,143.0,6.5943]
[1723076865864,36.99,143.14,143.07,6.9895]
[1723076866077,36.99,143.14,143.01,20.0]
[1723076866261,6.986,143.15,143.09,6.9881]
[1723076866468,20.0,143.16,143.09,6.9881]
[1723076866765,36.99,143.17,143.03,20.0]
[1723076867076,6.9857,143.15,143.1,6.988]
[1723076867386,6.9861,143.14,143.09,6.9885]
[1723076867580,20.0,143.16,143.0,6.5943]
[1723076867895,20.0,143.16,143.01,21.56772114]
[1723076868272,36.99,143.17,143.02,1.39776061]
[1723076868481,20.0,143.16,143.03,0.17]
[1723076868893,20.0,143.16,143.01,20.0]
[1723076869095,20.0,143.16,143.02,45.34]
[1723076869396,20.0,143.16,143.03,20.0]
[1723076869791,6.9861,143.15,143.09,6.9882]
[1723076870095,26.9852,143.16,143.11,6.9875]
[1723076870297,6.9856,143.15,143.04,0.34]
[1723076870506,6.9867,143.13,143.03,20.0]
[1723076870800,6.9871,143.12,143.01,20.0]
[1723076870999,6.9882,143.1,143.0,6.5943]
[1723076871205,6.9882,143.1,143.05,6.9901]
[1723076871905,36.99,143.11,142.96,6.65]
[1723076872213,6.9896,143.07,143.03,6.9914]
[1723076872518,6.9901,143.06,143.02,6.9919]
[1723076872679,6.45,143.06,142.92,15.9333]
[1723076872881,6.9909,143.05,143.01,100.0]
[1723076873892,6.45,143.06,143.01,100.0]
[1723076873893,6.991,143.04,143.01,100.0]
[1723076874200,6.9915,143.03,143.01,100.0]
[1723076875002,6.9911,143.04,143.01,100.0]
[1723076875394,6.992,143.02,143.01,100.0]
[1723076875582,60.0055,143.02,143.01,23.01782922]
[1723076875887,125.1755,143.02,143.01,23.01782922]
[1723076876079,80.0055,143.02,143.01,23.01782922]
[1723076877503,80.1755,143.02,143.01,6.48019282]
[1723076877683,6.9938,142.99,142.87,1.28800779]
[1723076877881,118.3535,143.02,142.86,27.47131099]
[1723076877882,6.994,142.98,142.86,27.47131099]
[1723076878312,6.9935,142.99,142.94,6.9959]
[1723076878492,6.993,143.0,142.95,6.9954]
[1723076878811,6.9935,142.99,142.94,6.9959]
[1723076879184,73.0135,143.02,142.86,7.47131099]
[1723076879185,6.994,142.98,142.86,7.47131099]
[1723076880311,6.9934,143.0,142.87,0.17]
[1723076880609,56.99,143.02,142.88,21.39905117]
[1723076880821,26.9925,143.01,142.96,6.9945]
[1723076881189,20.0,143.01,142.87,1.35616761]
[1723076881387,20.0,143.01,142.87,20.0]
[1723076881610,27.22480637,143.01,142.87,20.0]
[1723076881795,6.135,142.98,142.84,36.2195]
[1723076882095,6.135,142.98,142.85,21.39939289]
[1723076882294,6.135,142.98,142.86,1.39909557]
[1723076882496,6.135,142.98,142.86,21.39909557]
[1723076882710,6.135,142.98,142.95,6.9954]
[1723076882907,6.135,142.98,142.87,20.0]
[1723076883086,6.9945,142.97,142.92,6.9965]
[1723076883413,6.9949,142.96,142.91,6.9973]
[1723076883583,6.9945,142.97,142.92,6.9968]
[1723076883988,6.9959,142.94,142.84,16.2195]
[1723076884206,6.135,142.98,142.89,6.9982]
[1723076884395,6.9955,142.95,142.89,6.9982]
[1723076885085,6.9955,142.95,142.84,16.2195]
[1723076885086,6.9949,142.96,142.84,16.2195]
[1723076885303,6.9951,142.96,142.91,6.9972]
[1723076885517,6.995,142.96,142.84,16.2195]
[1723076885815,6.995,142.96,142.85,45.17]
[1723076886119,6.9955,142.95,142.84,16.2195]
[1723076886302,6.9954,142.95,142.9,6.9978]
[1723076886817,6.996,142.94,142.89,6.9983]
[1723076887114,6.135,142.98,142.95,6.995]
[1723076888001,6.9934,143.0,142.95,6.995]
[1723076888901,6.9935,142.99,142.95,6.995]
[1723076889204,71.78041115,143.02,142.86,0.89861288]
[1723076889400,50.79041115,143.02,142.87,1.39928754]
[1723076889706,6.994,142.98,142.93,6.9963]
[1723076890111,6.9945,142.97,142.92,6.9968]
[1723076891009,6.994,142.98,142.93,6.9964]
[1723076891601,6.993,143.0,142.95,6.9954]
[1723076891805,6.9935,142.99,142.94,6.9959]
[1723076892197,6.994,142.98,142.93,6.9959]
[1723076892902,6.994,142.98,142.93,6.9963]
[1723076893310,50.79041115,143.02,142.94,6.9957]
[1723076893311,6.9937,142.99,142.94,6.9957]
[1723076894323,6.9935,142.99,142.94,6.9955]
[1723076895526,6.994,142.98,142.93,6.9963]
[1723076895823,6.9949,142.96,142.91,6.9973]
[1723076896024,6.9929,143.01,142.96,6.9945]
[1723076896211,20.0,143.0,142.84,36.2195]
[1723076896410,20.0,143.0,142.86,20.0]
[1723076896726,6.9933,143.0,142.95,6.9952]
[1723076897226,6.9933,143.0,142.9,6.3781]
[1723076897227,20.0,143.01,142.9,6.3781]
[1723076898107,7.23441115,143.02,143.01,6.9925]
[1723076898313,6.4831,143.07,142.93,35.8162]
[1723076898314,6.4831,143.07,143.0,6.9929]
[1723076898520,23.9581,143.07,142.94,1.39147894]
[1723076898712,23.9581,143.07,142.93,15.8162]
[1723076898713,6.992,143.02,142.97,6.994]
[1723076898917,23.9581,143.07,142.93,15.8162]
[1723076898918,17.4772,143.05,142.93,15.8162]
[1723076899230,17.4772,143.05,142.93,22.8125]
[1723076899231,6.9941,142.98,142.93,22.8125]
[1723076899412,6.9946,142.97,142.92,6.9968]
[1723076899607,6.9946,142.97,142.87,35.2273]
[1723076899608,6.994,142.98,142.93,6.9963]
[1723076900531,36.99,143.01,142.88,1.39876026]
[1723076900716,36.99,143.04,142.9,20.0]
[1723076901031,6.9913,143.04,142.99,6.9934]
[1723076901222,6.9924,143.02,142.96,6.9946]
[1723076901612,6.9916,143.03,142.98,6.9939]
[1723076902026,6.9916,143.03,142.91,1.51887109]
[1723076902027,36.99,143.05,142.99,6.9932]
[1723076902226,26.9914,143.04,142.99,6.9932]
[1723076902529,26.9914,143.04,142.91,21.51887109]
[1723076902530,20.0,143.04,142.97,6.9943]
[1723076903035,26.991,143.04,142.91,21.51868233]
[1723076903338,7.21776299,143.09,142.95,35.1299]
[1723076903510,6.9865,143.14,143.09,6.9886]
[1723076904029,6.2483,143.15,143.05,15.1299]
[1723076904230,36.99,143.14,143.04,6.9906]
[1723076904424,6.9881,143.1,143.0,17.38026156]
[1723076904625,23.7135,143.15,143.01,6.992]
[1723076904626,6.9897,143.07,143.01,6.992]
[1723076904826,36.99,143.11,143.0,16.0063]
[1723076905015,6.9872,143.12,143.01,0.17]
[1723076905211,6.9872,143.12,143.01,45.17]
[1723076905411,6.9867,143.13,143.07,6.9891]
[1723076905610,43.2383,143.15,143.06,6.9899]
[1723076905819,43.2383,143.15,143.01,45.17]
[1723076906015,6.9866,143.13,143.08,6.989]
[1723076906216,13.2343,143.15,143.03,6.5119]
[1723076906514,13.2343,143.15,143.04,46.73755083]
[1723076907230,6.9865,143.14,143.04,46.73755083]
[1723076907430,6.2483,143.15,143.03,6.5119]
[1723076907633,6.2483,143.15,143.06,6.99]
[1723076907824,43.2383,143.15,143.08,6.989]
[1723076908134,26.9862,143.14,143.08,6.989]
[1723076908344,13.234,143.15,143.04,1.3975535]
[1723076908519,13.234,143.15,143.05,1.73745934]
[1723076909019,13.234,143.15,143.1,6.9878]
[1723076909223,13.234,143.15,143.09,6.9885]
[1723076909428,13.234,143.15,143.05,1.73745934]
[1723076909429,13.234,143.15,143.1,6.9879]
[1723076909920,6.2483,143.15,143.05,1.73744838]
[1723076910123,6.2483,143.15,143.04,45.0]
[1723076910822,6.2483,143.15,143.05,0.34]
[1723076911139,13.2342,143.15,143.1,6.988]
[1723076911325,6.9862,143.14,143.04,45.0]
[1723076911524,6.2483,143.15,143.04,45.0]
[1723076911737,6.2483,143.15,143.05,0.85934349]
[1723076911949,7.2195433,143.19,143.06,15.9201]
[1723076912124,7.2195433,143.19,143.18,6.9842]
[1723076912429,6.5161,143.27,143.23,6.9817]
[1723076912641,13.4959,143.27,143.15,35.7552]
[1723076912833,13.4959,143.27,143.16,45.87034436]
[1723076913016,13.4959,143.27,143.21,6.9826]
[1723076913216,6.5161,143.27,143.15,15.7552]
[1723076913630,6.9832,143.2,143.15,6.9856]
[1723076913821,36.99,143.28,143.06,15.9773]
[1723076913822,6.2614,143.21,143.06,15.9773]
[1723076914026,6.2614,143.21,143.15,6.9856]
[1723076914348,6.9852,143.16,143.06,15.9773]
[1723076914515,6.2614,143.21,143.06,15.9773]
[1723076914715,6.2614,143.21,143.14,6.9856]
[1723076914917,13.2444,143.21,143.15,6.9854]
[1723076915142,6.2614,143.21,143.08,0.61340091]
[1723076915333,6.2614,143.21,143.14,6.9857]
[1723076915522,6.2614,143.21,143.09,20.0]
[1723076915723,13.2441,143.21,143.16,6.9851]
[1723076916437,6.9832,143.2,143.15,6.9856]
[1723076916639,6.2614,143.21,143.1,65.34]
[1723076916814,6.2614,143.21,143.11,1.14658058]
[1723076917011,6.1713,143.25,143.13,20.0]
[1723076917235,6.1713,143.25,143.14,46.73650951]
[1723076917443,6.1713,143.25,143.13,1.39651795]
[1723076917624,6.9837,143.19,143.14,6.986]
[1723076917824,6.9842,143.18,143.13,6.9865]
[1723076918040,6.9842,143.18,143.07,1.04366975]
[1723076918041,28.73,143.19,143.09,20.0]
[1723076918246,6.1713,143.25,143.12,28.73]
[1723076918429,6.1713,143.25,143.16,28.73]
[1723076918618,6.1713,143.25,143.22,6.9821]
[1723076919125,6.1713,143.25,143.18,1.3962773]
[1723076919126,6.1713,143.25,143.23,6.9817]
[1723076919644,6.1713,143.25,143.17,1.39615058]
[1723076919842,6.1713,143.25,143.22,6.9822]
[1723076920242,6.1713,143.25,143.23,6.9817]
[1723076921318,35.7094,143.28,143.23,6.9817]
[1723076921520,35.7094,143.28,143.24,6.9812]
[1723076921741,6.2232,143.29,143.18,1.39615645]
[1723076921951,6.2232,143.29,143.17,21.39615645]
[1723076922130,6.2232,143.29,143.18,1.56609109]
[1723076922652,13.2024,143.29,143.24,6.9812]
[1723076922850,6.9807,143.26,143.21,6.9825]
[1723076923216,43.1132,143.29,143.15,15.8696]
[1723076923217,43.1132,143.29,143.17,20.0]
[1723076923417,6.9795,143.28,143.23,6.9817]
[1723076923643,6.9798,143.27,143.22,6.9821]
[1723076923825,6.9803,143.26,143.21,6.9827]
[1723076924327,6.9809,143.25,143.16,0.54724103]
[1723076924525,6.9818,143.23,143.16,0.54724103]
[1723076924729,6.9817,143.24,143.19,6.9836]
[1723076924944,17.4491,143.28,143.14,0.55528402]
[1723076925143,20.0,143.27,143.15,0.55524522]
[1723076925343,6.9809,143.25,143.2,6.9828]
[1723076925740,6.9809,143.25,143.21,6.9827]
[1723076926045,6.9809,143.25,143.15,1.39638302]
[1723076926046,50.31932956,143.29,143.15,21.39638302]
[1723076926233,6.9808,143.25,143.21,6.9827]
[1723076926429,6.9808,143.25,143.2,6.983]
[1723076926635,6.9813,143.24,143.2,6.983]
[1723076926823,6.9818,143.23,143.11,20.0]
[1723076927029,6.9818,143.23,143.18,6.9841]
[1723076927229,6.9814,143.24,143.19,6.9833]
[1723076927525,6.9804,143.26,143.21,6.9826]
[1723076927847,6.9808,143.25,143.2,6.9831]
[1723076928228,17.4504,143.27,143.1,35.7456]
[1723076928424,6.9822,143.22,143.17,6.9843]
[1723076928634,6.9817,143.23,143.19,6.9837]
[1723076928840,6.9817,143.23,143.18,6.9841]
[1723076929636,6.9813,143.24,143.19,6.9836]
[1723076929962,6.9818,143.23,143.18,6.9839]
[1723076930341,6.9818,143.23,143.19,6.9836]
[1723076930842,6.9824,143.22,143.13,1.39550887]
[1723076931038,6.9824,143.22,143.11,20.0]
[1723076931039,6.9823,143.22,143.11,20.0]
[1723076931347,6.9818,143.23,143.11,21.39560636]
[1723076931966,6.157,143.25,143.11,21.39560636]
[1723076932277,6.9816,143.24,143.19,6.9836]
[1723076933174,6.9824,143.22,143.17,6.9846]
[1723076934652,42.2532,143.21,143.11,1.39671162]
[1723076934853,6.4007,143.15,143.04,2.72263041]
[1723076935068,36.89,143.13,143.03,20.0]
[1723076935279,6.4007,143.15,143.03,20.0]
[1723076935468,6.4007,143.15,143.13,6.9865]
[1723076935653,6.4007,143.15,143.05,20.0]
[1723076935979,6.4007,143.15,143.11,6.9872]
[1723076936579,6.4007,143.15,143.12,6.987]
[1723076936959,6.4007,143.15,143.02,20.0]
[1723076937272,6.4007,143.15,143.03,45.34]
[1723076937482,6.9864,143.14,143.0,72.7188]
[1723076937651,13.3863,143.15,143.0,35.8288]
[1723076937857,6.4007,143.15,143.1,6.9876]
[1723076938651,6.4007,143.15,143.09,6.9885]
[1723076939272,13.3863,143.15,143.1,6.988]
[1723076939776,6.4007,143.15,143.0,15.8288]
[1723076939975,6.9875,143.12,143.01,45.34]
[1723076940159,6.9866,143.14,143.08,6.9886]
[1723076940355,13.3864,143.15,143.02,20.0]
[1723076940570,6.9861,143.14,143.03,45.17]
[1723076940858,6.9868,143.13,143.02,20.0]
[1723076941048,6.9868,143.13,143.07,6.9891]
[1723076941382,6.9872,143.12,143.02,20.0]
[1723076941568,6.9866,143.14,143.08,6.9887]
[1723076941769,28.76,143.12,143.08,6.9887]
[1723076942161,28.76,143.12,143.02,20.0]
[1723076942356,28.76,143.12,143.09,6.9885]
[1723076942758,6.4007,143.15,143.04,28.76]
[1723076943062,35.1607,143.15,143.12,6.987]
[1723076943457,35.1607,143.15,143.1,6.9879]
[1723076943756,28.76,143.13,143.02,29.54719493]
[1723076943966,28.76,143.13,143.03,65.17]
[1723076944284,28.76,143.13,143.04,0.78708486]
[1723076944485,28.76,143.13,143.05,0.17]
[1723076944696,28.76,143.13,143.03,65.17]
[1723076944872,28.76,143.13,143.11,6.9876]
[1723076945080,28.76,143.13,143.11,6.9875]
[1723076946282,28.76,143.13,143.1,6.988]
[1723076946481,28.76,143.11,143.06,6.9899]
[1723076946666,28.76,143.09,143.05,6.9904]
[1723076946863,28.76,143.09,142.98,28.76]
[1723076946864,35.7486,143.09,142.98,28.76]
[1723076947082,28.76,143.09,142.98,28.76]
[1723076947391,28.76,143.11,143.09,6.9885]
[1723076947775,28.76,143.11,143.08,6.989]
[1723076947971,28.76,143.13,143.1,6.9881]
[1723076948188,28.76,143.13,143.09,6.9885]
[1723076948512,28.76,143.11,143.06,6.9897]
[1723076948789,28.76,143.09,142.98,28.76]
[1723076949383,28.76,143.09,142.98,30.02021354]
[1723076949576,28.76,143.09,142.99,1.39810156]
[1723076949773,28.76,143.09,143.06,6.9896]
[1723076950184,28.76,143.09,143.07,6.9895]
[1723076951086,28.76,143.09,142.99,46.39810156]
[1723076951289,28.76,143.11,143.0,49.1]
[1723076951594,28.76,143.11,143.01,46.39778497]
[1723076952468,28.76,143.11,143.07,6.9891]
[1723076952888,28.76,143.11,143.09,6.9885]
[1723076953267,28.76,143.11,143.01,46.39772946]
[1723076953469,28.76,143.11,143.02,20.0]
[1723076953701,28.76,143.09,143.0,20.0]
[1723076953995,6.4007,143.15,143.02,48.76]
[1723076954198,28.76,143.13,143.03,0.89130891]
[1723076954500,6.4007,143.15,143.0,48.76]
[1723076954501,28.76,143.11,143.0,48.76]
[1723076954988,35.7477,143.11,143.06,6.99]
[1723076955217,28.76,143.09,143.05,6.9904]
[1723076955406,6.2333,143.06,142.96,46.34066319]
[1723076955576,6.2333,143.06,143.03,6.9911]
[1723076956672,6.2333,143.06,142.96,16.1825]
[1723076957094,6.2333,143.06,143.05,6.9905]
[1723076957389,6.2333,143.06,142.96,44.9425]
[1723076957390,6.2333,143.06,143.04,6.9909]
[1723076957592,6.2333,143.06,143.01,6.992]
[1723076957797,28.76,143.05,143.01,6.992]
[1723076958107,28.76,143.05,143.03,6.9913]
[1723076958595,28.76,143.05,142.92,28.76]
[1723076958769,28.76,143.02,142.91,15.6191]
[1723076959504,35.752,143.02,142.98,6.9938]
[1723076959802,35.752,143.02,142.97,6.9944]
[1723076960010,27.2233,143.06,142.88,28.76]
[1723076960011,6.5883,142.99,142.88,28.76]
[1723076960311,28.76,142.98,142.95,6.995]
[1723076961808,28.76,142.98,142.95,6.495]
[1723076962312,28.76,142.96,142.92,6.9968]
[1723076962482,28.76,142.96,142.86,16.2339]
[1723076962483,28.76,142.96,142.93,6.9964]
[1723076962682,28.76,142.96,142.94,6.9959]
[1723076964008,35.7554,142.96,142.91,6.997]
[1723076964181,28.76,142.94,142.82,75.0236]
[1723076964386,35.756,142.94,142.89,6.9982]
[1723076964599,28.76,142.94,142.82,45.0236]
[1723076964813,28.76,142.94,142.91,6.9973]
[1723076965785,35.7563,142.94,142.82,45.0236]
[1723076965984,6.0015,142.93,142.89,6.9982]
[1723076966309,6.0015,142.93,142.91,6.997]
[1723076967184,6.0015,142.93,142.9,6.9977]
[1723076967786,28.76,142.92,142.89,6.9983]
[1723076968015,28.76,142.92,142.9,6.9979]
[1723076968178,28.76,142.92,142.83,20.0]
[1723076968382,28.76,142.92,142.88,6.9986]
[1723076968801,28.76,142.92,142.89,6.9983]
[1723076969020,28.76,142.92,142.82,16.2636]
[1723076969622,28.76,142.92,142.88,6.9988]
[1723076970009,28.76,142.9,142.87,6.9993]
[1723076970341,28.76,142.88,142.84,7.0005]
[1723076970497,28.76,142.88,142.77,22.8181]
[1723076970498,28.76,142.91,142.88,6.9987]
[1723076970707,34.7615,142.93,142.89,6.9983]
[1723076971107,34.7615,142.93,142.81,28.76]
[1723076971327,41.7581,142.93,142.82,1.39980548]
[1723076971507,28.76,142.91,142.87,6.9993]
[1723076971703,28.76,142.91,142.8,1.39970745]
[1723076971914,34.7615,142.93,142.81,29.1]
[1723076972111,6.0015,142.93,142.82,85.0]
[1723076972324,6.0015,142.93,142.92,6.9969]
[1723076972826,28.76,142.97,142.92,6.9969]
[1723076972827,6.5584,142.97,142.96,6.9949]
[1723076973036,6.5584,142.97,142.86,23.3719216]
[1723076973037,13.5528,142.97,142.87,28.76]
[1723076973211,42.3128,142.97,142.91,6.9969]
[1723076973725,35.3184,142.97,142.86,17.35303811]
[1723076973908,35.3184,142.97,142.87,29.1]
[1723076974112,35.3184,142.97,142.93,6.9963]
[1723076974309,35.3184,142.97,142.87,0.34]
[1723076974511,42.3129,142.97,142.87,0.34]
[1723076974801,42.3129,142.97,142.91,6.9969]
[1723076975003,35.3184,142.97,142.88,1.39877922]
[1723076975301,6.5584,142.97,142.89,0.34]
[1723076975502,6.5584,142.97,142.89,1.73884923]
[1723076975922,6.5584,142.97,142.89,0.34]
[1723076977335,6.5584,142.97,142.93,6.9959]
[1723076977508,6.5584,142.97,142.87,28.76]
[1723076977706,6.5584,142.97,142.94,6.9958]
[1723076978035,6.5584,142.97,142.93,6.9963]
[1723076978204,13.5528,142.97,142.92,6.9964]
[1723076978404,7.29078564,143.02,142.99,6.9933]
[1723076978602,7.29078564,143.02,143.01,6.9925]
[1723076978831,28.76,143.06,142.95,15.0757]
[1723076979007,6.5414,143.08,142.95,15.0757]
[1723076979008,28.76,143.04,142.99,6.993]
[1723076979210,35.7515,143.04,142.98,6.9938]
[1723076979729,6.992,143.02,142.93,1.38394903]
[1723076979932,57.05798552,143.08,142.92,0.34]
[1723076979933,28.76,143.0,142.92,0.34]
[1723076980136,28.76,143.0,142.91,20.0]
[1723076980315,28.76,143.0,142.92,0.34]
[1723076980638,6.6514,143.01,142.92,46.72292868]
[1723076980839,6.6514,143.01,142.98,6.9939]
[1723076981141,6.6514,143.01,142.96,6.9945]
[1723076981142,28.76,143.0,142.96,6.9945]
[1723076981846,28.76,143.0,142.97,6.9944]
[1723076982141,28.76,143.0,142.91,20.0]
[1723076982319,28.76,143.0,142.97,6.9944]
[1723076982725,28.76,143.0,142.92,0.34]
[1723076982726,6.6514,143.01,142.99,6.9934]
[1723076982917,6.6514,143.01,143.0,6.993]
[1723076983111,6.6514,143.01,142.93,1.39293902]
[1723076983112,6.6514,143.01,142.99,6.9934]
[1723076984326,6.6514,143.01,143.0,6.993]
[1723076984629,6.6514,143.01,142.99,6.9934]
[1723076985263,6.6514,143.01,143.0,6.993]
[1723076985830,6.6514,143.01,142.98,6.9935]
[1723076986130,6.6514,143.01,142.94,0.17]
[1723076986438,6.6514,143.01,142.93,66.56859689]
[1723076986631,6.6514,143.01,142.94,0.17]
[1723076987838,6.6514,143.01,142.99,6.9932]
[1723076988215,6.6514,143.01,142.93,0.17]
[1723076988534,35.4114,143.01,142.93,0.17]
[1723076988834,42.4039,143.01,142.96,6.9945]
[1723076989047,35.4114,143.01,142.91,21.02133322]
[1723076989363,35.4114,143.01,142.98,6.9937]
[1723076989535,35.4114,143.01,142.97,6.9944]
[1723076990050,35.4114,143.01,142.98,6.9939]
[1723076990459,35.4114,143.01,142.97,6.9943]
[1723076990636,35.4114,143.01,142.91,20.0]
[1723076990637,35.4114,143.01,142.91,40.0]
[1723076990824,6.6514,143.01,142.92,30.2504287]
[1723076991157,6.6514,143.01,142.93,20.0]
[1723076991451,6.6514,143.01,142.99,6.9931]
[1723076991760,6.6514,143.01,142.97,6.9943]
[1723076992062,42.4039,143.01,142.96,6.9945]
[1723076992253,35.4114,143.01,142.97,6.9941]
[1723076992628,28.76,142.99,142.87,6.0893]
[1723076992844,28.76,142.97,142.86,45.2666]
[1723076993354,28.76,142.95,142.86,16.5066]
[1723076993655,28.76,142.95,142.92,6.9964]
[1723076995628,28.76,142.95,142.91,6.9973]
[1723076995827,6.3307,142.94,142.9,6.9978]
[1723076996027,28.76,142.93,142.82,47.88094666]
[1723076996260,28.76,142.93,142.82,16.3315]
[1723076996425,28.76,142.93,142.9,6.9978]
[1723076997045,28.76,142.93,142.89,6.9982]
[1723076997552,28.76,142.91,142.88,6.9983]
[1723076998061,28.76,142.89,142.78,16.91634232]
[1723076998262,28.76,142.89,142.86,6.9997]
[1723076998433,28.76,142.89,142.85,7.0002]
[1723076999357,6.3307,142.94,142.79,50.15987163]
[1723076999561,28.76,142.92,142.81,28.76]
[1723076999754,28.76,142.92,142.89,6.9983]
[1723076999942,28.76,142.92,142.87,6.9989]
[1723077000339,28.76,142.92,142.81,28.76]
[1723077000340,28.76,142.92,142.82,1.3995401]
[1723077000538,28.76,142.92,142.79,30.15959335]
[1723077000753,35.7582,142.9,142.79,28.76]
[1723077000977,28.76,142.9,142.79,28.76]
[1723077001262,35.0907,142.94,142.88,6.9984]
[1723077001263,28.76,142.92,142.88,6.9984]
[1723077001437,6.3307,142.94,142.93,6.9964]
[1723077002456,6.5977,142.97,142.96,6.9949]
[1723077002655,6.5253,143.02,143.0,6.9925]
[1723077002861,6.5253,143.02,142.99,6.9934]
[1723077003075,35.2853,143.02,142.93,0.17]
[1723077003255,28.76,143.0,142.89,1.39865562]
[1723077003448,28.76,142.98,142.88,65.0]
[1723077003647,28.76,142.98,142.92,6.9965]
[1723077003964,6.9947,142.97,142.92,6.9965]
[1723077004379,35.7541,142.98,142.93,6.9962]
[1723077004551,28.76,142.96,142.86,16.0435]
[1723077004752,28.76,142.94,142.9,6.9978]
[1723077005157,28.76,142.94,142.91,6.9974]
[1723077005376,6.4623,142.95,142.85,48.76]
[1723077005552,6.4623,142.95,142.92,6.9965]
[1723077005747,6.4623,142.95,142.94,6.9959]
[1723077005978,6.0558,142.99,142.89,28.76]
[1723077006148,6.0558,142.99,142.9,46.37718101]
[1723077006953,34.8158,142.99,142.9,0.17]
[1723077007153,34.8158,142.99,142.88,20.0]
[1723077007359,34.8158,142.99,142.89,45.34]
[1723077007800,6.2664,143.03,142.93,48.76]
[1723077007965,42.31405686,143.07,143.03,6.9914]
[1723077008171,6.2664,143.07,142.97,28.76]
[1723077008474,16.1858,143.12,142.97,28.76]
[1723077008475,35.1389,143.11,143.08,6.9888]
[1723077009580,28.76,143.09,143.05,6.9902]
[1723077009784,28.76,143.09,143.03,6.9915]
[1723077009960,28.76,143.07,143.03,6.9915]
[1723077010161,6.3789,143.11,143.05,6.9905]
[1723077010162,6.9883,143.1,143.05,6.9905]
[1723077010378,28.76,143.09,142.99,28.76]
[1723077010684,28.76,143.09,143.0,0.17]
[1723077010876,28.76,143.09,143.05,6.9901]
[1723077011667,35.7487,143.09,143.03,6.991]
[1723077011863,28.76,143.07,143.04,6.991]
[1723077012488,28.76,143.09,142.98,1.56800613]
[1723077012657,28.76,143.09,143.05,6.9904]
[1723077012857,6.3789,143.11,142.98,20.17]
[1723077013057,28.76,143.06,142.98,20.17]